bitfinex/quotes_BTCUSD_20260308
["timestamp","ask_amount","ask_price","bid_price","bid_amount"]
[1772999147648,0.08889066,67342.0,67335.0,0.000253]
[1772999148059,0.1481085,67344.0,67335.0,0.000253]
[1772999148204,0.22235408,67345.0,67335.0,0.000253]
[1772999148411,0.05879807,67350.0,67336.0,0.07425448]
[1772999148412,0.1481085,67347.0,67336.0,0.07425448]
[1772999148616,0.07424086,67349.0,67337.0,0.08530091]
[1772999148836,0.00148,67348.0,67338.0,0.25253496]
[1772999149037,0.00148,67347.0,67338.0,0.25253496]
[1772999150722,0.07572329,67347.0,67338.0,0.25253496]
[1772999152229,0.00148,67347.0,67338.0,0.25253496]
[1772999152417,0.0757228,67347.0,67338.0,0.25253496]
[1772999153029,0.00148,67346.0,67338.0,0.25253496]
[1772999155013,0.00148,67346.0,67339.0,0.25253496]
[1772999155764,0.07572349,67346.0,67339.0,0.25253496]
[1772999156567,0.14815301,67351.0,67338.0,0.07425007]
[1772999156706,0.00148,67353.0,67338.0,0.07425007]
[1772999156907,0.00148,67353.0,67340.0,0.08530091]
[1772999157118,0.07571606,67353.0,67341.0,0.07424897]
[1772999157525,0.07571606,67353.0,67342.0,0.25253496]
[1772999157731,0.07593607,67353.0,67342.0,0.25253496]
[1772999158623,0.07593607,67353.0,67342.0,0.32678223]
[1772999158757,0.0744513,67358.0,67343.0,0.33783587]
[1772999158961,0.0744513,67358.0,67342.0,0.07424727]
[1772999158962,0.0744513,67358.0,67345.0,0.25253496]
[1772999159157,0.00148,67357.0,67346.0,0.33783587]
[1772999159548,0.00148,67356.0,67347.0,0.25253496]
[1772999160361,0.0744513,67358.0,67347.0,0.25253496]
[1772999160639,0.00148,67357.0,67348.0,0.32677621]
[1772999160964,0.07423133,67357.0,67348.0,0.25253496]
[1772999161139,0.00148,67356.0,67346.0,0.08530091]
[1772999162313,0.09037066,67356.0,67344.0,0.32678005]
[1772999162512,0.07423353,67355.0,67344.0,0.32678005]
[1772999164857,0.07445354,67355.0,67340.0,0.08530091]
[1772999165032,0.07445095,67358.0,67342.0,0.08530091]
[1772999165237,0.00148,67354.0,67345.0,0.26213324]
[1772999165423,0.00148,67353.0,67345.0,0.08021052]
[1772999165622,0.00148,67353.0,67346.0,0.26213324]
[1772999165824,0.00148,67352.0,67348.0,0.26213324]
[1772999166048,0.00148,67352.0,67350.0,0.26213324]
[1772999166248,0.00148,67352.0,67340.0,0.26213324]
[1772999166449,0.00148,67352.0,67342.0,0.08021052]
[1772999166660,0.00148,67352.0,67344.0,0.33637859]
[1772999166871,0.00148,67352.0,67344.0,0.07424535]
[1772999167101,0.00148,67352.0,67346.0,0.26213324]
[1772999167666,0.00148,67352.0,67343.0,0.07424566]
[1772999167861,0.00148,67352.0,67345.0,0.26213324]
[1772999168234,0.00148,67352.0,67343.0,0.07424566]
[1772999168235,0.07445126,67358.0,67347.0,0.26213324]
[1772999168622,0.00148,67357.0,67347.0,0.26213324]
[1772999169053,0.00022001,67366.0,67348.0,0.07424125]
[1772999169259,0.00022001,67366.0,67349.0,0.26213324]
[1772999169260,0.00148,67364.0,67349.0,0.26213324]
[1772999169392,0.00022001,67366.0,67352.0,0.08316366]
[1772999169604,0.00022001,67366.0,67350.0,0.08316366]
[1772999169805,0.00148,67365.0,67353.0,0.26213324]
[1772999170053,0.00148,67365.0,67355.0,0.08316366]
[1772999170213,0.00148,67365.0,67356.0,0.26213324]
[1772999170607,0.00022001,67366.0,67356.0,0.26213324]
[1772999170805,0.00148,67365.0,67356.0,0.26213324]
[1772999171010,0.00148,67364.0,67357.0,0.07423133]
[1772999171227,0.00148,67363.0,67357.0,0.07423133]
[1772999171782,0.00015,67358.0,67357.0,0.07423133]
[1772999171966,0.00148,67362.0,67358.0,0.26213324]
[1772999172192,0.0744387,67369.0,67359.0,0.08316366]
[1772999172193,0.00022001,67369.0,67359.0,0.08316366]
[1772999172463,0.00148,67365.0,67361.0,0.26213324]
[1772999172619,0.07443835,67369.0,67361.0,0.26213324]
[1772999172817,0.00148,67368.0,67361.0,0.26213324]
[1772999173213,0.07443835,67369.0,67361.0,0.26213324]
[1772999173214,0.00148,67367.0,67361.0,0.26213324]
[1772999173548,0.00148,67367.0,67361.0,0.3363599]
[1772999173757,0.00148,67366.0,67361.0,0.3363599]
[1772999174162,0.00022001,67369.0,67361.0,0.3363599]
[1772999174482,0.00148,67368.0,67361.0,0.3363599]
[1772999176421,0.00148,67368.0,67360.0,0.07422755]
[1772999176751,1.34e-06,67367.0,67360.0,0.07422755]
[1772999177650,0.00022001,67369.0,67360.0,0.07422755]
[1772999177651,0.00148,67368.0,67361.0,0.26213324]
[1772999177854,0.000173,67371.0,67367.0,0.26213324]
[1772999177855,0.00148,67371.0,67367.0,0.26213324]
[1772999178101,0.00148,67373.0,67369.0,0.26213324]
[1772999178316,0.07997097,67376.0,67369.0,0.26213324]
[1772999178512,0.00148,67378.0,67371.0,0.26213324]
[1772999178752,0.00187699,67378.0,67371.0,0.26213324]
[1772999178900,0.00172535,67378.0,67371.0,0.26213324]
[1772999179276,0.00039699,67378.0,67371.0,0.26213324]
[1772999179482,0.00148,67379.0,67372.0,0.07413558]
[1772999179692,0.00148,67379.0,67373.0,0.26213324]
[1772999180089,2.137e-05,67381.0,67373.0,0.26213324]
[1772999180338,0.00148,67380.0,67373.0,0.26213324]
[1772999181459,0.07420709,67379.0,67373.0,0.26213324]
[1772999181747,0.07568709,67380.0,67373.0,0.26213324]
[1772999181947,0.07420709,67379.0,67373.0,0.3452969]
[1772999182796,0.07568709,67379.0,67373.0,0.3452969]
[1772999182935,0.07568709,67379.0,67373.0,0.25767214]
[1772999183143,0.07420709,67379.0,67373.0,0.25767214]
[1772999183336,0.07568709,67379.0,67373.0,0.25767214]
[1772999184438,0.07434749,67381.0,67375.0,0.26213324]
[1772999184439,0.0001404,67381.0,67375.0,0.26213324]
[1772999184642,0.00148,67381.0,67375.0,0.26213324]
[1772999185271,0.00148,67381.0,67372.0,0.07421474]
[1772999185472,0.07420599,67380.0,67369.0,0.07441806]
[1772999185678,0.07420599,67380.0,67370.0,0.26213324]
[1772999185994,0.00022001,67379.0,67371.0,0.26213324]
[1772999186218,6.834e-05,67379.0,67371.0,0.07516291]
[1772999186409,6.834e-05,67379.0,67372.0,0.26213324]
[1772999186708,6.834e-05,67379.0,67373.0,0.26213324]
[1772999187268,0.07420199,67384.0,67373.0,0.26213324]
[1772999187470,0.07420199,67384.0,67373.0,0.26225227]
[1772999187692,0.00148,67383.0,67376.0,0.26213324]
[1772999187906,0.00148,67382.0,67376.0,0.26213324]
[1772999188872,0.0744197,67386.0,67376.0,0.26213324]
[1772999188873,0.00148,67383.0,67376.0,0.26213324]
[1772999189371,0.07436807,67390.0,67375.0,0.0742115]
[1772999189372,0.000173,67390.0,67375.0,0.0742115]
[1772999189543,0.17965467,67400.0,67375.0,0.0742115]
[1772999189544,0.07419401,67391.0,67379.0,0.07420709]
[1772999189759,0.07419401,67391.0,67381.0,0.07474653]
[1772999189992,0.07419401,67391.0,67381.0,0.33687977]
[1772999190181,0.07419401,67391.0,67382.0,0.26213324]
[1772999190501,0.07567278,67392.0,67382.0,0.25784359]
[1772999191283,0.07567278,67392.0,67382.0,0.07515531]
[1772999191486,0.07567278,67392.0,67382.0,0.33728855]
[1772999191663,0.07567278,67392.0,67383.0,0.07420269]
[1772999192243,0.07567278,67392.0,67383.0,0.33633593]
[1772999193050,0.07589279,67392.0,67383.0,0.33633593]
[1772999193254,0.08589279,67392.0,67383.0,0.33633593]
[1772999194724,0.08441279,67392.0,67383.0,0.33633593]
[1772999194929,0.00148,67391.0,67383.0,0.33633593]
[1772999195291,0.00148,67391.0,67383.0,0.07420269]
[1772999195490,0.00148,67391.0,67381.0,0.07420405]
[1772999198464,0.07419498,67390.0,67380.0,0.07420591]
[1772999198674,0.08533458,67389.0,67380.0,0.07420591]
[1772999199218,0.27164409,67388.0,67373.0,0.07433263]
[1772999199456,0.13294665,67390.0,67373.0,0.07433263]
[1772999199457,0.08116119,67385.0,67373.0,0.07433263]
[1772999199672,0.08116119,67383.0,67373.0,0.07433263]
[1772999199863,0.08116119,67383.0,67381.0,0.0002]
[1772999200042,0.08116119,67383.0,67373.0,0.07433263]
[1772999200242,0.08116119,67383.0,67374.0,0.0002]
[1772999200452,0.07420379,67382.0,67374.0,0.0002]
[1772999204290,0.15536498,67382.0,67374.0,0.0002]
[1772999205423,0.07420379,67382.0,67374.0,0.0002]
[1772999206167,0.08420379,67382.0,67374.0,0.0002]
[1772999206671,0.16536498,67382.0,67374.0,0.0002]
[1772999206870,0.08420379,67382.0,67374.0,0.0002]
[1772999208971,0.16536498,67382.0,67374.0,0.0002]
[1772999209476,0.08420379,67382.0,67374.0,0.0002]
[1772999211868,0.00148,67381.0,67374.0,0.0002]
[1772999213069,0.00148,67382.0,67378.0,0.26010107]
[1772999213224,0.00148,67383.0,67380.0,0.26010107]
[1772999213423,0.00148,67383.0,67377.0,0.07420929]
[1772999213643,0.00148,67386.0,67377.0,0.33431036]
[1772999214892,0.00148,67386.0,67377.0,0.07420929]
[1772999215119,0.00148,67386.0,67379.0,0.07420709]
[1772999215260,0.08264119,67386.0,67379.0,0.07420709]
[1772999215801,0.08116119,67384.0,67377.0,0.07420929]
[1772999218258,0.08116119,67384.0,67375.0,0.07420929]
[1772999218458,0.15536296,67384.0,67375.0,0.07420929]
[1772999219316,0.00148,67383.0,67375.0,0.07420929]
[1772999220144,0.00148,67383.0,67377.0,0.0002]
[1772999223040,0.16536137,67386.0,67377.0,0.0002]
[1772999223041,0.08420018,67386.0,67377.0,0.0002]
[1772999223244,0.00148,67383.0,67377.0,0.0002]
[1772999224225,0.00148,67383.0,67375.0,0.06940929]
[1772999224817,0.08420018,67386.0,67375.0,0.06940929]
[1772999225016,0.00148,67385.0,67377.0,0.24470516]
[1772999225251,0.00148,67385.0,67379.0,0.26766515]
[1772999226156,0.07419472,67391.0,67379.0,0.26766515]
[1772999226361,0.00148,67387.0,67379.0,0.26766515]
[1772999226739,0.00148,67387.0,67375.0,0.06940929]
[1772999226940,0.08300929,67384.0,67375.0,0.06940929]
[1772999228107,0.08300929,67383.0,67375.0,0.06940929]
[1772999228247,0.08300929,67383.0,67375.0,0.06960929]
[1772999228996,0.08300929,67383.0,67375.0,0.0002]
[1772999229588,0.08300929,67383.0,67375.0,0.0012]
[1772999229911,0.08300929,67383.0,67375.0,0.0002]
[1772999233370,0.08100169,67379.0,67370.0,0.0002]
[1772999233665,0.08100169,67377.0,67370.0,0.00059699]
[1772999234497,0.00148,67384.0,67370.0,0.00059699]
[1772999234638,0.00148,67383.0,67372.0,0.26766515]
[1772999234847,0.00148,67383.0,67373.0,0.08149006]
[1772999235240,0.07568312,67383.0,67374.0,0.0742126]
[1772999235438,0.08100169,67382.0,67374.0,0.0742126]
[1772999236067,0.08100169,67382.0,67370.0,0.00059699]
[1772999236262,0.08100169,67382.0,67371.0,0.07421565]
[1772999237183,0.15520658,67381.0,67371.0,0.07421565]
[1772999237357,0.15520658,67381.0,67373.0,0.0002]
[1772999238656,0.00148,67380.0,67373.0,0.0002]
[1772999242307,0.07420709,67379.0,67373.0,0.0002]
[1772999245759,0.07568489,67381.0,67373.0,0.0002]
[1772999245934,0.00022001,67380.0,67373.0,0.0002]
[1772999246833,0.00170001,67380.0,67373.0,0.0002]
[1772999247663,0.00022001,67380.0,67373.0,0.0744137]
[1772999247839,0.00170001,67380.0,67373.0,0.0744137]
[1772999249444,0.00170001,67380.0,67374.0,0.08149006]
[1772999249834,0.00170001,67380.0,67373.0,0.0744137]
[1772999250064,0.00023,67376.0,67368.0,0.33912193]
[1772999250269,0.00062675,67376.0,67368.0,0.33912193]
[1772999250473,0.00062675,67376.0,67369.0,0.06997678]
[1772999251362,0.00077165,67376.0,67369.0,0.06997678]
[1772999251763,0.00077165,67376.0,67368.0,0.26914515]
[1772999252179,0.00077165,67376.0,67369.0,0.07421811]
[1772999253577,0.0001341,67383.0,67369.0,0.07421811]
[1772999253731,0.00148,67381.0,67370.0,0.33572769]
[1772999254068,0.00173306,67383.0,67369.0,0.07421811]
[1772999254221,0.00173306,67383.0,67372.0,0.07283137]
[1772999254432,0.00148,67384.0,67374.0,0.07283137]
[1772999254633,0.00148,67384.0,67375.0,0.3355611]
[1772999254835,0.07441889,67387.0,67374.0,0.00011896]
[1772999255040,0.0827017,67385.0,67374.0,0.00011896]
[1772999255246,0.00022001,67383.0,67374.0,0.00011896]
[1772999261902,0.14825851,67388.0,67374.0,0.00011896]
[1772999261903,0.00035411,67390.0,67375.0,0.00148]
[1772999262109,0.26415192,67399.0,67374.0,0.00011896]
[1772999262110,0.1779904,67408.0,67377.0,0.26272973]
[1772999262307,0.2223778,67414.0,67380.0,0.07148006]
[1772999262308,0.07416868,67414.0,67380.0,0.07148006]
[1772999262513,0.07416868,67414.0,67383.0,0.26272973]
[1772999262714,0.07416979,67413.0,67386.0,0.07148006]
[1772999263030,0.08268554,67416.0,67391.0,0.26272973]
[1772999263232,0.00148,67418.0,67387.0,0.00148]
[1772999263432,0.00148,67418.0,67389.0,0.26272973]
[1772999263629,0.00148,67418.0,67392.0,0.0737308]
[1772999263814,0.00148,67418.0,67394.0,0.0737308]
[1772999264011,0.07416526,67417.0,67396.0,0.07402153]
[1772999264263,0.00148,67418.0,67396.0,0.07402153]
[1772999264478,0.08120554,67419.0,67398.0,0.07356623]
[1772999264792,0.07436338,67433.0,67406.0,0.26272973]
[1772999265102,0.07436338,67433.0,67411.0,0.0733997]
[1772999265292,0.34035746,67432.0,67414.0,0.26272973]
[1772999265493,0.25915192,67427.0,67412.0,0.00148]
[1772999265705,0.08120554,67424.0,67410.0,0.00148]
[1772999265925,0.07448247,67433.0,67410.0,0.00148]
[1772999265926,0.08120554,67422.0,67410.0,0.00148]
[1772999266075,0.07416086,67421.0,67411.0,0.07417187]
[1772999267575,0.25915192,67420.0,67409.0,0.07417187]
[1772999267796,0.08120554,67418.0,67409.0,0.07417187]
[1772999268325,0.07416526,67417.0,67407.0,0.0741758]
[1772999268958,0.07416526,67417.0,67407.0,0.07400898]
[1772999269368,0.1553708,67418.0,67407.0,0.07400898]
[1772999269650,0.07416526,67418.0,67407.0,0.14747892]
[1772999269795,0.07416261,67420.0,67407.0,0.07400898]
[1772999269994,0.08120554,67420.0,67407.0,0.07400898]
[1772999270431,0.00148,67425.0,67408.0,0.07330398]
[1772999270630,0.07415295,67429.0,67407.0,0.07400898]
[1772999270631,0.00022001,67417.0,67410.0,0.26272973]
[1772999270877,0.00148,67426.0,67413.0,0.07330398]
[1772999271191,0.00022001,67424.0,67413.0,0.07330398]
[1772999271385,0.25915192,67421.0,67403.0,0.07971957]
[1772999271552,0.06023403,67423.0,67403.0,0.07971957]
[1772999271553,0.08120554,67418.0,67407.0,0.002]
[1772999271882,0.08268554,67417.0,67404.0,0.00148]
[1772999272037,0.08120554,67416.0,67404.0,0.00148]
[1772999272242,0.25915192,67414.0,67404.0,0.00148]
[1772999272438,0.15537631,67412.0,67405.0,0.07417847]
[1772999272647,0.08120554,67411.0,67405.0,0.07417847]
[1772999273055,0.08120554,67411.0,67403.0,0.00554]
[1772999273261,0.25915192,67409.0,67400.0,0.00023]
[1772999273464,0.08120554,67407.0,67400.0,0.00023]
[1772999273685,0.07416363,67419.0,67401.0,0.07307249]
[1772999273920,0.00148,67418.0,67402.0,0.07307249]
[1772999274064,0.07416306,67420.0,67404.0,0.07292732]
[1772999274274,0.07416306,67420.0,67401.0,0.00148]
[1772999274447,0.07416158,67421.0,67403.0,0.07418067]
[1772999274809,0.15684457,67423.0,67404.0,0.07292732]
[1772999274810,0.08120554,67423.0,67404.0,0.07292732]
[1772999274963,0.08120554,67423.0,67405.0,0.07276361]
[1772999275174,0.08120554,67423.0,67407.0,0.26272973]
[1772999275565,0.0743777,67424.0,67408.0,0.07424361]
[1772999275769,0.0743777,67424.0,67410.0,0.26272973]
[1772999275770,0.00148,67423.0,67410.0,0.26272973]
[1772999275876,0.0743777,67424.0,67411.0,0.07276361]
[1772999276086,0.0758577,67424.0,67411.0,0.07276361]
[1772999277297,0.0858577,67424.0,67412.0,0.07417077]
[1772999277952,0.00148,67423.0,67412.0,0.07417077]
[1772999279023,0.01022001,67424.0,67414.0,0.26272973]
[1772999279220,0.01022001,67424.0,67417.0,0.07416526]
[1772999282130,0.07969169,67430.0,67417.0,0.14579705]
[1772999282365,0.07981011,67430.0,67417.0,0.14579705]
[1772999282564,0.16101565,67430.0,67417.0,0.14579705]
[1772999282947,0.00148,67429.0,67417.0,0.14579705]
[1772999283162,0.08268554,67429.0,67417.0,0.07416526]
[1772999283492,0.00148,67428.0,67417.0,0.07416526]
[1772999284850,0.00565898,67430.0,67418.0,0.07134971]
[1772999285079,0.00022001,67424.0,67418.0,0.07134971]
[1772999285290,0.00022001,67424.0,67417.0,0.07416526]
[1772999286147,0.00022001,67424.0,67417.0,0.07399845]
[1772999286735,0.08319177,67430.0,67417.0,0.07399845]
[1772999286895,0.08319177,67430.0,67417.0,0.14501501]
[1772999290555,0.08319177,67430.0,67417.0,0.07399845]
[1772999291427,0.08319177,67430.0,67417.0,0.07419845]
[1772999291643,0.07414869,67434.0,67417.0,0.07419845]
[1772999291645,0.22168615,67487.0,67431.0,0.07022315]
[1772999291842,0.081284,67471.0,67439.0,0.32182576]
[1772999292160,0.07433534,67472.0,67440.0,0.1462949]
[1772999292161,0.081284,67465.0,67440.0,0.1462949]
[1772999292359,0.25640652,67462.0,67442.0,0.07005023]
[1772999292557,0.081284,67459.0,67443.0,0.1448149]
[1772999292757,0.00022001,67444.0,67436.0,0.11585345]
[1772999292941,0.081284,67451.0,67438.0,0.07229089]
[1772999293139,0.081284,67456.0,67439.0,0.14471276]
[1772999293349,0.081284,67456.0,67440.0,0.21700365]
[1772999293529,0.081284,67456.0,67442.0,0.07229089]
[1772999293733,0.15538991,67471.0,67446.0,0.25160261]
[1772999294054,0.00039677,67471.0,67452.0,0.0720931]
[1772999294269,0.00039677,67471.0,67456.0,0.0720931]
[1772999294478,0.00039677,67471.0,67458.0,0.0720931]
[1772999294694,0.00039677,67471.0,67448.0,0.0001482]
[1772999294868,0.00039677,67471.0,67449.0,0.14593218]
[1772999295071,0.00039677,67471.0,67450.0,0.14593218]
[1772999295267,0.33769052,67470.0,67451.0,0.14445218]
[1772999295444,0.00039677,67471.0,67452.0,0.00148]
[1772999295645,0.0741081,67469.0,67452.0,0.00148]
[1772999295861,0.081284,67467.0,67451.0,0.07412679]
[1772999296061,0.081284,67465.0,67452.0,0.00148]
[1772999296389,0.081284,67462.0,67448.0,0.0016282]
[1772999296589,0.081284,67460.0,67448.0,0.0001482]
[1772999296788,0.082764,67460.0,67448.0,0.0001482]
[1772999297195,0.25640652,67459.0,67448.0,0.0001482]
[1772999297359,0.00148,67460.0,67448.0,0.0001482]
[1772999297559,0.01,67467.0,67448.0,0.07427896]
[1772999297759,0.0741136,67464.0,67449.0,0.07228321]
[1772999298006,0.082764,67463.0,67449.0,0.07228321]
[1772999298305,0.0741136,67464.0,67449.0,0.07228321]
[1772999298503,0.081284,67463.0,67449.0,0.07228321]
[1772999299803,0.07411579,67462.0,67449.0,0.1464132]
[1772999300444,0.07411579,67462.0,67450.0,0.07362874]
[1772999301422,0.07411579,67462.0,67451.0,0.07150486]
[1772999301846,0.07559579,67463.0,67451.0,0.07150486]
[1772999302213,0.07559579,67463.0,67448.0,0.0001482]
[1772999302363,0.081284,67461.0,67448.0,0.0001482]
[1772999302563,0.25640652,67460.0,67448.0,0.0001482]
[1772999302768,0.081284,67459.0,67448.0,0.07427896]
[1772999303008,0.082764,67463.0,67448.0,0.07427896]
[1772999303160,0.082284,67463.0,67448.0,0.07411219]
[1772999303370,0.00148,67462.0,67448.0,0.14523282]
[1772999303569,0.00148,67462.0,67444.0,0.00148]
[1772999303570,0.081284,67460.0,67444.0,0.00148]
[1772999303792,0.25640652,67456.0,67445.0,0.00148]
[1772999304054,0.07412019,67458.0,67436.0,0.00148]
[1772999304055,0.25640652,67454.0,67436.0,0.00148]
[1772999304262,0.25640652,67454.0,67428.0,0.11585345]
[1772999304263,0.25640652,67450.0,67430.0,0.07969077]
[1772999304430,0.081284,67447.0,67430.0,0.00554]
[1772999304607,0.07412019,67458.0,67430.0,0.00554]
[1772999304608,0.081284,67443.0,67430.0,0.00554]
[1772999304944,0.07412019,67458.0,67430.0,0.00554]
[1772999304945,0.25640652,67439.0,67430.0,0.00554]
[1772999305233,0.081284,67438.0,67430.0,0.00554]
[1772999305636,0.25640652,67437.0,67424.0,0.07438721]
[1772999305838,0.081284,67434.0,67424.0,0.07438721]
[1772999306182,0.081284,67432.0,67424.0,0.00023]
[1772999306581,0.081284,67431.0,67424.0,0.00023]
[1772999307046,0.081284,67431.0,67424.0,0.07438723]
[1772999307228,0.081284,67431.0,67424.0,0.00023]
[1772999308045,0.07415067,67431.0,67424.0,0.07438686]
[1772999308357,0.42561314,67424.0,67418.0,0.07416416]
[1772999308558,0.42561314,67424.0,67418.0,0.07428314]
[1772999309776,0.42561314,67424.0,67418.0,0.05424336]
[1772999311185,0.43561314,67424.0,67418.0,0.05424336]
[1772999311952,0.25640652,67431.0,67418.0,0.00011898]
[1772999312149,0.081284,67430.0,67418.0,0.00011898]
[1772999313208,0.07415207,67429.0,67418.0,0.00011898]
[1772999314157,0.07411207,67429.0,67418.0,0.00011898]
[1772999314379,0.07411207,67429.0,67418.0,0.00031898]
[1772999314646,0.36992332,67508.0,67418.0,0.00031898]
[1772999314647,0.00022001,67463.0,67421.0,0.14113196]
[1772999314827,0.00022001,67463.0,67424.0,0.07593704]
[1772999314828,0.07436208,67448.0,67424.0,0.07593704]
[1772999315039,0.07436208,67448.0,67428.0,0.07593704]
[1772999315336,0.07436141,67448.0,67432.0,0.07593704]
[1772999315551,0.07436141,67448.0,67434.0,0.07593704]
[1772999315743,0.07436141,67448.0,67435.0,0.14593285]
[1772999315900,0.33424614,67448.0,67436.0,0.14445285]
[1772999316097,0.26011473,67448.0,67435.0,0.00148]
[1772999316302,0.01023,67448.0,67436.0,0.14441267]
[1772999316506,0.01023,67448.0,67435.0,0.07741704]
[1772999316711,0.00148,67451.0,67437.0,0.07593704]
[1772999317129,0.081284,67451.0,67437.0,0.07593704]
[1772999317330,0.081284,67451.0,67438.0,0.07414217]
[1772999318428,0.081284,67451.0,67438.0,0.15007921]
[1772999319873,0.1554119,67451.0,67438.0,0.15007921]
[1772999320294,0.1554119,67451.0,67439.0,0.14450838]
[1772999320497,0.081284,67451.0,67438.0,0.15007921]
[1772999320699,0.34113517,67450.0,67439.0,0.14450809]
[1772999320838,0.34113517,67450.0,67438.0,0.07414217]
[1772999321028,0.34113517,67450.0,67439.0,0.14450838]
[1772999321227,0.34113517,67450.0,67438.0,0.07414217]
[1772999321433,0.41566113,67450.0,67440.0,0.07413997]
[1772999321636,0.41566113,67450.0,67441.0,0.00148]
[1772999321859,0.07452596,67450.0,67440.0,0.00148]
[1772999322080,0.08125044,67448.0,67438.0,0.00148]
[1772999322468,0.08125044,67448.0,67439.0,0.14466223]
[1772999322672,0.08125044,67448.0,67438.0,0.00148]
[1772999322882,0.08125044,67448.0,67439.0,0.14466682]
[1772999323050,0.08125044,67448.0,67437.0,0.00148]
[1772999323248,0.08125044,67448.0,67438.0,0.14468268]
[1772999323504,0.07413228,67447.0,67436.0,0.07414335]
[1772999323684,0.07413228,67447.0,67437.0,0.14616308]
[1772999324676,0.15538272,67447.0,67437.0,0.14616308]
[1772999325084,0.08125044,67445.0,67437.0,0.14616308]
[1772999325673,0.07413557,67444.0,67438.0,0.14468308]
[1772999326370,0.07413557,67444.0,67436.0,0.07414376]
[1772999326575,0.07413557,67444.0,67437.0,0.14479972]
[1772999326730,0.07413557,67444.0,67438.0,0.14479972]
[1772999326950,0.07413557,67444.0,67436.0,0.07414376]
[1772999327152,0.07413557,67444.0,67437.0,0.14480705]
[1772999327474,0.16538601,67445.0,67431.0,0.15237382]
[1772999327475,0.07414107,67439.0,67431.0,0.07562933]
[1772999327845,0.07414107,67439.0,67431.0,0.07414933]
[1772999328041,0.07414107,67439.0,67429.0,0.07415112]
[1772999328042,0.15539151,67439.0,67429.0,0.07415112]
[1772999328292,0.15539151,67439.0,67429.0,0.07563112]
[1772999328871,0.08125044,67437.0,67429.0,0.07563112]
[1772999329079,0.25988473,67437.0,67429.0,0.07563112]
[1772999329612,0.07414437,67436.0,67429.0,0.07563112]
[1772999330182,0.07414437,67436.0,67429.0,0.00148]
[1772999330801,0.07414437,67436.0,67429.0,0.07563195]
[1772999331029,0.34113517,67435.0,67429.0,0.00148]
[1772999331173,0.25988473,67435.0,67427.0,0.00148]
[1772999331373,0.25988473,67433.0,67424.0,0.00023]
[1772999331619,0.25988473,67430.0,67420.0,0.07415976]
[1772999331791,0.08125044,67429.0,67420.0,0.07415976]
[1772999332352,0.08125044,67429.0,67416.0,0.11538579]
[1772999332353,0.25988473,67428.0,67411.0,0.0002]
[1772999332493,0.08125044,67425.0,67411.0,0.0743716]
[1772999332689,0.25988473,67423.0,67411.0,0.0743716]
[1772999333024,0.08125044,67422.0,67411.0,0.07449058]
[1772999333280,0.08125044,67420.0,67407.0,0.00168]
[1772999333522,0.00148,67419.0,67407.0,0.07585603]
[1772999333705,0.08125044,67416.0,67407.0,0.07585603]
[1772999333847,0.08125044,67416.0,67407.0,0.00168]
[1772999334455,0.34113517,67415.0,67407.0,0.00168]
[1772999334659,0.34113517,67415.0,67407.0,0.00164]
[1772999334863,0.08125044,67415.0,67407.0,0.00164]
[1772999335070,0.25988473,67414.0,67404.0,0.0002]
[1772999335263,0.25988473,67412.0,67403.0,0.07991989]
[1772999335674,0.07417187,67411.0,67403.0,0.00574]
[1772999335877,0.3340566,67411.0,67403.0,0.00574]
[1772999336267,0.41530704,67411.0,67403.0,0.00574]
[1772999336453,0.34113517,67410.0,67401.0,0.00047]
[1772999336632,0.25988473,67407.0,67398.0,0.00148]
[1772999336998,0.25988473,67407.0,67396.0,0.07418799]
[1772999337199,0.25988473,67407.0,67397.0,0.00148]
[1772999337814,0.07417661,67407.0,67398.0,0.07418617]
[1772999338178,0.07416635,67417.0,67399.0,0.07822431]
[1772999338379,0.07428308,67419.0,67403.0,0.07822431]
[1772999338380,0.00011892,67419.0,67403.0,0.07822431]
[1772999338518,0.00023,67424.0,67404.0,0.00148]
[1772999338897,0.07438776,67424.0,67405.0,0.07822431]
[1772999339063,0.25988473,67423.0,67405.0,0.07822431]
[1772999339236,0.34113517,67422.0,67405.0,0.07822431]
[1772999339965,0.07416086,67421.0,67407.0,0.07822431]
[1772999341641,0.07416086,67421.0,67406.0,0.07417737]
[1772999341642,0.25988473,67419.0,67408.0,0.00148]
[1772999341837,0.07416416,67418.0,67408.0,0.00148]
[1772999342053,0.34113517,67417.0,67408.0,0.00148]
[1772999342271,0.34113517,67417.0,67407.0,0.07417579]
[1772999342272,0.34113517,67417.0,67407.0,0.07565579]
[1772999342471,0.07416416,67418.0,67407.0,0.07565579]
[1772999342811,0.07416416,67418.0,67407.0,0.07417579]
[1772999342980,0.07436361,67437.0,67407.0,0.07417579]
[1772999343183,0.26359138,67437.0,67408.0,0.14555041]
[1772999343382,0.26359138,67437.0,67407.0,0.07417579]
[1772999343383,0.07415207,67429.0,67411.0,0.07822431]
[1772999343582,0.07415207,67429.0,67414.0,0.14555041]
[1772999343764,0.07415207,67429.0,67415.0,0.07822431]
[1772999343973,0.07415207,67429.0,67417.0,0.07822431]
[1772999344186,0.07415207,67429.0,67419.0,0.07822431]
[1772999345695,0.07969156,67430.0,67419.0,0.07822431]
[1772999346046,0.07969131,67430.0,67419.0,0.07822431]
[1772999346234,0.07969131,67430.0,67421.0,0.07460818]
[1772999346235,0.00554,67430.0,67421.0,0.07460818]
[1772999346394,0.01,67429.0,67421.0,0.07460818]
[1772999346744,0.01,67429.0,67420.0,0.07416196]
[1772999348265,0.0841527,67429.0,67419.0,0.0002]
[1772999348441,0.0841527,67429.0,67412.0,0.0002]
[1772999348442,0.0841527,67429.0,67412.0,0.07437006]
[1772999348643,0.07960088,67426.0,67411.0,0.07417166]
[1772999348973,0.07960088,67422.0,67410.0,0.07417297]
[1772999349161,0.32747599,67420.0,67410.0,0.07417297]
[1772999349711,0.32747599,67420.0,67409.0,0.07417407]
[1772999350133,0.00148,67419.0,67409.0,0.07417407]
[1772999350766,0.07416416,67418.0,67408.0,0.07402458]
[1772999352667,0.07416416,67418.0,67407.0,0.07565565]
[1772999353104,0.07416416,67418.0,67407.0,0.07417565]
[1772999353308,0.07416416,67418.0,67407.0,0.07565565]
[1772999354086,0.07416416,67418.0,67407.0,0.07417565]
[1772999354286,0.07416416,67418.0,67407.0,0.07565565]
[1772999354974,0.07416416,67418.0,67407.0,0.07565597]
[1772999355395,0.32747599,67417.0,67408.0,0.0002]
[1772999355799,0.07415317,67428.0,67409.0,0.21649897]
[1772999356003,0.00148,67427.0,67410.0,0.07874117]
[1772999356233,0.07415317,67428.0,67410.0,0.07874117]
[1772999356234,0.00148,67426.0,67410.0,0.07874117]
[1772999356598,0.07415317,67428.0,67410.0,0.07874117]
[1772999356800,0.24787511,67425.0,67411.0,0.07417187]
[1772999357041,0.32747599,67425.0,67411.0,0.07417187]
[1772999357238,0.00148,67427.0,67408.0,0.00168]